[Event "Late-Titled-Tuesday-Blitz-June-25-2024"]
[Site "Chess.com"]
[Date "2024.06.25"]
[Round "10"]
[White "Gabrielian_Artur"]
[Black "djano"]
[Result "1-0"]
[WhiteElo "2727"]
[BlackElo "2581"]
[TimeControl "180+1"]
[EndTime "15:56:23 PDT"]
[Termination "Gabrielian_Artur won by resignation"]

1. e4 {[%clk 0:03:00.9]} 1... c5 {[%clk 0:03:00]} 2. Nf3 {[%clk 0:03:00.7]} 2...
g6 {[%clk 0:03:00.6]} 3. c4 {[%clk 0:02:58.1]} 3... Bg7 {[%clk 0:02:57.4]} 4. d4
{[%clk 0:02:58.1]} 4... Qa5+ {[%clk 0:02:57.8]} 5. Nc3 {[%clk 0:02:52.3]} 5...
Nc6 {[%clk 0:02:50.1]} 6. d5 {[%clk 0:02:52.1]} 6... Nd4 {[%clk 0:02:50.5]} 7.
Bd2 {[%clk 0:02:50.9]} 7... d6 {[%clk 0:02:42.7]} 8. Nxd4 {[%clk 0:02:41.1]}
8... cxd4 {[%clk 0:02:43.6]} 9. Nb5 {[%clk 0:02:40.5]} 9... Qb6 {[%clk 0:02:41]}
10. Qa4 {[%clk 0:02:38.8]} 10... Bd7 {[%clk 0:01:55.9]} 11. Ba5 {[%clk
0:02:35.9]} 11... Bxb5 {[%clk 0:01:55.9]} 12. cxb5 {[%clk 0:02:33.3]} 12... Qc5
{[%clk 0:01:53.8]} 13. Bd3 {[%clk 0:02:10.6]} 13... b6 {[%clk 0:01:48.4]} 14.
Bd2 {[%clk 0:02:00.9]} 14... Qc7 {[%clk 0:01:42.9]} 15. Rc1 {[%clk 0:02:00.6]}
15... Qd7 {[%clk 0:01:41.5]} 16. Rc6 {[%clk 0:01:55.1]} 16... Bh6 {[%clk
0:01:33.6]} 17. f4 {[%clk 0:01:47.4]} 17... Nf6 {[%clk 0:01:28.8]} 18. Rxb6
{[%clk 0:01:41.4]} 18... O-O {[%clk 0:01:28.9]} 19. Rc6 {[%clk 0:01:39.1]} 19...
e5 {[%clk 0:01:06.2]} 20. dxe6 {[%clk 0:01:17.5]} 20... fxe6 {[%clk 0:00:41.8]}
21. Qxd4 {[%clk 0:01:16.3]} 21... d5 {[%clk 0:00:20.4]} 22. O-O {[%clk
0:01:15.1]} 22... Rad8 {[%clk 0:00:14.5]} 23. e5 {[%clk 0:01:02.2]} 23... Ne8
{[%clk 0:00:14]} 24. Rfc1 {[%clk 0:00:55.2]} 24... Qf7 {[%clk 0:00:12.6]} 25. g3
{[%clk 0:00:54]} 25... Rd7 {[%clk 0:00:09.7]} 26. Bb4 {[%clk 0:00:48.7]} 26...
g5 {[%clk 0:00:05.9]} 27. Bxf8 {[%clk 0:00:48.5]} 27... Bxf8 {[%clk 0:00:06.8]}
28. f5 {[%clk 0:00:43.3]} 28... exf5 {[%clk 0:00:05.4]} 29. e6 {[%clk
0:00:43.5]} 29... Qg7 {[%clk 0:00:06]} 30. Qxg7+ {[%clk 0:00:41.7]} 30... Rxg7
{[%clk 0:00:06.9]} 31. Bxf5 {[%clk 0:00:38.6]} 31... Bb4 {[%clk 0:00:06]} 32.
Rc8 {[%clk 0:00:36.5]} 32... Kf8 {[%clk 0:00:06.5]} 33. Kg2 {[%clk 0:00:33.3]}
33... Ba5 {[%clk 0:00:04.9]} 34. Rd1 {[%clk 0:00:27.6]} 34... Re7 {[%clk
0:00:04.5]} 35. Rxd5 {[%clk 0:00:27]} 35... Kg7 {[%clk 0:00:05.1]} 36. Rd7
{[%clk 0:00:26.9]} 36... Kf6 {[%clk 0:00:05.7]} 37. Rxe7 {[%clk 0:00:26.5]}
37... Kxe7 {[%clk 0:00:06.6]} 38. Bxh7 {[%clk 0:00:26.1]} 38... Nd6 {[%clk
0:00:06.4]} 39. Ra8 {[%clk 0:00:25.9]} 39... Bb6 {[%clk 0:00:06.3]} 40. Bd3
{[%clk 0:00:25.5]} 40... Kxe6 {[%clk 0:00:06.6]} 41. h4 {[%clk 0:00:22.2]} 41...
gxh4 {[%clk 0:00:07.5]} 42. gxh4 {[%clk 0:00:22.3]} 42... Kf6 {[%clk 0:00:08.4]}
43. Kh3 {[%clk 0:00:21.5]} 43... Nf7 {[%clk 0:00:08.8]} 44. b4 {[%clk
0:00:20.5]} 44... Ne5 {[%clk 0:00:08.5]} 45. Be2 {[%clk 0:00:20.7]} 45... Ng6
{[%clk 0:00:07.6]} 46. Bf1 {[%clk 0:00:20.5]} 46... Nf4+ {[%clk 0:00:08]} 47.
Kg4 {[%clk 0:00:20.9]} 47... Ng6 {[%clk 0:00:08.4]} 48. a4 {[%clk 0:00:20.8]}
48... Ne5+ {[%clk 0:00:09.3]} 49. Kf4 {[%clk 0:00:20.6]} 49... Bc7 {[%clk
0:00:09.7]} 50. Ke4 {[%clk 0:00:20.6]} 50... Bb6 {[%clk 0:00:08.4]} 51. a5
{[%clk 0:00:20.5]} 51... Bf2 {[%clk 0:00:09.1]} 52. Kd5 {[%clk 0:00:18.5]} 52...
Ng4 {[%clk 0:00:08.1]} 53. Kc6 {[%clk 0:00:17.2]} 53... Ne5+ {[%clk 0:00:08.2]}
54. Kb7 {[%clk 0:00:17.1]} 54... Bxh4 {[%clk 0:00:05.5]} 55. Rxa7 {[%clk
0:00:16.9]} 55... Bf2 {[%clk 0:00:05.8]} 56. Ra8 {[%clk 0:00:17]} 56... Nf7
{[%clk 0:00:05]} 57. b6 {[%clk 0:00:17.2]} 57... Ke7 {[%clk 0:00:05.4]} 58. a6
{[%clk 0:00:15.9]} 58... Kd7 {[%clk 0:00:04.3]} 59. a7 {[%clk 0:00:15.5]} 59...
Nd6+ {[%clk 0:00:04.3]} 60. Ka6 {[%clk 0:00:15.9]} 60... Kc6 {[%clk 0:00:03]}
61. Bg2+ {[%clk 0:00:15.6]} 61... Kd7 {[%clk 0:00:02.7]} 62. Rg8 {[%clk
0:00:15.2]} 62... Bxb6 {[%clk 0:00:01.8]} 63. Kxb6 {[%clk 0:00:14.9]} 1-0

[Event "Late-Titled-Tuesday-Blitz-June-25-2024"]
[Site "Chess.com"]
[Date "2024.06.25"]
[Round "10"]
[White "Sic_Transit_GM"]
[Black "Cosi43"]
[Result "1-0"]
[WhiteElo "2559"]
[BlackElo "2689"]
[TimeControl "180+1"]
[EndTime "15:56:26 PDT"]
[Termination "Sic_Transit_GM won by resignation"]

1. e4 {[%clk 0:02:59.7]} 1... c5 {[%clk 0:03:00.1]} 2. Nc3 {[%clk 0:02:59.6]}
2... a6 {[%clk 0:02:58.1]} 3. Nge2 {[%clk 0:02:59.6]} 3... b5 {[%clk 0:02:58.1]}
4. d4 {[%clk 0:03:00]} 4... cxd4 {[%clk 0:02:58.7]} 5. Nxd4 {[%clk 0:03:00.9]}
5... Bb7 {[%clk 0:02:59.3]} 6. a3 {[%clk 0:03:00.5]} 6... Nf6 {[%clk 0:02:58.2]}
7. e5 {[%clk 0:02:57.5]} 7... Ne4 {[%clk 0:02:57.8]} 8. Nxe4 {[%clk 0:02:55.1]}
8... Bxe4 {[%clk 0:02:58.7]} 9. Qg4 {[%clk 0:02:54.6]} 9... Bb7 {[%clk
0:02:45.5]} 10. Bd3 {[%clk 0:02:53.6]} 10... g6 {[%clk 0:02:39.4]} 11. O-O
{[%clk 0:02:40.5]} 11... Bg7 {[%clk 0:02:39.2]} 12. f4 {[%clk 0:02:26.7]} 12...
e6 {[%clk 0:02:14.6]} 13. Be3 {[%clk 0:02:09.5]} 13... Nc6 {[%clk 0:02:03.3]}
14. Nf3 {[%clk 0:02:08.2]} 14... Ne7 {[%clk 0:01:45.2]} 15. Ng5 {[%clk
0:02:00.5]} 15... Rc8 {[%clk 0:01:38.5]} 16. Rad1 {[%clk 0:01:49.9]} 16... h6
{[%clk 0:01:07.8]} 17. Nf3 {[%clk 0:01:47.2]} 17... O-O {[%clk 0:00:49.1]} 18.
Kh1 {[%clk 0:01:22]} 18... Nf5 {[%clk 0:00:48.7]} 19. Bxf5 {[%clk 0:01:20.7]}
19... exf5 {[%clk 0:00:49.6]} 20. Qg3 {[%clk 0:01:15.7]} 20... Rxc2 {[%clk
0:00:49.3]} 21. Bd4 {[%clk 0:01:10.1]} 21... Qa8 {[%clk 0:00:45.5]} 22. Ne1
{[%clk 0:01:05.2]} 22... Re2 {[%clk 0:00:30.4]} 23. Rf2 {[%clk 0:00:57.4]} 23...
Rxf2 {[%clk 0:00:28.3]} 24. Qxf2 {[%clk 0:00:58.3]} 24... Rc8 {[%clk 0:00:27.3]}
25. Bc5 {[%clk 0:00:56.6]} 25... Bd5 {[%clk 0:00:25.2]} 26. b4 {[%clk
0:00:55.7]} 26... Bf8 {[%clk 0:00:22.8]} 27. Qd4 {[%clk 0:00:47.8]} 27... Bxc5
{[%clk 0:00:19.4]} 28. bxc5 {[%clk 0:00:46.7]} 28... Be6 {[%clk 0:00:18.4]} 29.
Nd3 {[%clk 0:00:44.7]} 29... a5 {[%clk 0:00:18.3]} 30. Rb1 {[%clk 0:00:44]}
30... Qe4 {[%clk 0:00:16.6]} 31. Qxe4 {[%clk 0:00:41.4]} 31... fxe4 {[%clk
0:00:17.5]} 32. Nf2 {[%clk 0:00:41.8]} 32... Rxc5 {[%clk 0:00:17.1]} 33. Nxe4
{[%clk 0:00:41.8]} 33... Rc2 {[%clk 0:00:12.7]} 34. Kg1 {[%clk 0:00:35.9]} 34...
Bd5 {[%clk 0:00:13]} 35. Nf6+ {[%clk 0:00:36.2]} 35... Kg7 {[%clk 0:00:12.2]}
36. Nxd5 {[%clk 0:00:37.1]} 36... Ra2 {[%clk 0:00:08.9]} 37. Rxb5 {[%clk
0:00:34.7]} 37... Rxa3 {[%clk 0:00:08.7]} 38. Kf2 {[%clk 0:00:33.2]} 38... Ra2+
{[%clk 0:00:09]} 39. Kf3 {[%clk 0:00:32.3]} 39... Ra3+ {[%clk 0:00:09.4]} 40.
Ne3 {[%clk 0:00:29.3]} 40... h5 {[%clk 0:00:07.5]} 41. Rb7 {[%clk 0:00:29.2]}
41... Rd3 {[%clk 0:00:06.6]} 42. Ra7 {[%clk 0:00:29.2]} 42... Ra3 {[%clk
0:00:07.1]} 43. Rxd7 {[%clk 0:00:28.3]} 43... Kf8 {[%clk 0:00:07.3]} 44. Ra7
{[%clk 0:00:27.7]} 44... a4 {[%clk 0:00:07.8]} 45. Ke4 {[%clk 0:00:27.4]} 45...
Ra2 {[%clk 0:00:08.2]} 46. h4 {[%clk 0:00:25.1]} 46... a3 {[%clk 0:00:08.3]} 47.
f5 {[%clk 0:00:22.5]} 47... gxf5+ {[%clk 0:00:07.4]} 48. Nxf5 {[%clk 0:00:23.4]}
48... Kg8 {[%clk 0:00:08.1]} 49. Nh6+ {[%clk 0:00:21.9]} 49... Kg7 {[%clk
0:00:08]} 50. Nxf7 {[%clk 0:00:22.5]} 50... Rxg2 {[%clk 0:00:08.2]} 51. Ng5+
{[%clk 0:00:21.8]} 51... Kg6 {[%clk 0:00:08.3]} 52. Ra6+ {[%clk 0:00:21.6]}
52... Kg7 {[%clk 0:00:08.4]} 53. Kf5 {[%clk 0:00:20.4]} 53... Rf2+ {[%clk
0:00:06.9]} 54. Ke6 {[%clk 0:00:20.6]} 54... a2 {[%clk 0:00:07.4]} 55. Ne4
{[%clk 0:00:20.3]} 55... Rh2 {[%clk 0:00:06.2]} 56. Nc3 {[%clk 0:00:18.9]} 56...
Rxh4 {[%clk 0:00:05.1]} 57. Rxa2 {[%clk 0:00:19]} 57... Rf4 {[%clk 0:00:03.4]}
58. Rg2+ {[%clk 0:00:16.9]} 58... Kh6 {[%clk 0:00:03.7]} 59. Nd5 {[%clk
0:00:16.9]} 59... h4 {[%clk 0:00:04.4]} 60. Nxf4 {[%clk 0:00:16.2]} 60... h3
{[%clk 0:00:05.1]} 61. Nxh3 {[%clk 0:00:16.3]} 1-0

[Event "Late-Titled-Tuesday-Blitz-June-25-2024"]
[Site "Chess.com"]
[Date "2024.06.25"]
[Round "10"]
[White "IMRosen"]
[Black "yaguigor"]
[Result "0-1"]
[WhiteElo "2691"]
[BlackElo "2569"]
[TimeControl "180+1"]
[EndTime "15:56:28 PDT"]
[Termination "yaguigor won by resignation"]

1. e4 {[%clk 0:03:00.9]} 1... c5 {[%clk 0:02:43]} 2. Nc3 {[%clk 0:03:00.6]} 2...
Nc6 {[%clk 0:02:42.5]} 3. Bb5 {[%clk 0:03:00.4]} 3... Nd4 {[%clk 0:02:41.6]} 4.
Nf3 {[%clk 0:03:00.1]} 4... e6 {[%clk 0:02:41.2]} 5. O-O {[%clk 0:02:57.4]} 5...
a6 {[%clk 0:02:39.3]} 6. Bd3 {[%clk 0:02:57.5]} 6... Nc6 {[%clk 0:02:37.3]} 7.
b3 {[%clk 0:02:57.7]} 7... g6 {[%clk 0:02:24.9]} 8. Re1 {[%clk 0:02:53.7]} 8...
d6 {[%clk 0:02:17.3]} 9. Bb2 {[%clk 0:02:23.1]} 9... Bg7 {[%clk 0:02:15.9]} 10.
Na4 {[%clk 0:02:23.8]} 10... e5 {[%clk 0:02:05.7]} 11. Bf1 {[%clk 0:02:14.8]}
11... Nge7 {[%clk 0:02:01.8]} 12. Nc3 {[%clk 0:02:06.9]} 12... O-O {[%clk
0:01:57.8]} 13. Nd5 {[%clk 0:02:06.4]} 13... Nxd5 {[%clk 0:01:44.5]} 14. exd5
{[%clk 0:02:06.7]} 14... Ne7 {[%clk 0:01:43.8]} 15. c4 {[%clk 0:02:07.4]} 15...
Nf5 {[%clk 0:01:30.3]} 16. g3 {[%clk 0:02:04.3]} 16... h5 {[%clk 0:01:27]} 17.
Bg2 {[%clk 0:01:58.7]} 17... h4 {[%clk 0:01:25.2]} 18. Qc2 {[%clk 0:01:53.6]}
18... Bh6 {[%clk 0:01:18.9]} 19. a3 {[%clk 0:01:45.5]} 19... b5 {[%clk
0:01:16.6]} 20. d3 {[%clk 0:01:40.5]} 20... Rb8 {[%clk 0:01:13.6]} 21. b4 {[%clk
0:01:30.3]} 21... cxb4 {[%clk 0:01:07.9]} 22. axb4 {[%clk 0:01:30.5]} 22... bxc4
{[%clk 0:01:06]} 23. dxc4 {[%clk 0:01:31.2]} 23... Rxb4 {[%clk 0:01:02.8]} 24.
c5 {[%clk 0:01:31.8]} 24... hxg3 {[%clk 0:00:50.4]} 25. hxg3 {[%clk 0:01:29.9]}
25... e4 {[%clk 0:00:45.6]} 26. Nh2 {[%clk 0:01:14.1]} 26... e3 {[%clk
0:00:43.4]} 27. Qc3 {[%clk 0:00:55.6]} 27... exf2+ {[%clk 0:00:37.9]} 28. Kxf2
{[%clk 0:00:56.5]} 28... Rxb2+ {[%clk 0:00:37.5]} 29. Qxb2 {[%clk 0:00:57.4]}
29... Bg7 {[%clk 0:00:37]} 30. Qb6 {[%clk 0:00:36.6]} 30... Bd4+ {[%clk
0:00:36.3]} 31. Kf3 {[%clk 0:00:36.1]} 31... Bxa1 {[%clk 0:00:30.9]} 32. Qxd8
{[%clk 0:00:13.3]} 32... Rxd8 {[%clk 0:00:27.7]} 33. Rxa1 {[%clk 0:00:13.9]}
33... dxc5 {[%clk 0:00:27.9]} 34. Kf4 {[%clk 0:00:08.7]} 34... Bb7 {[%clk
0:00:26.4]} 35. Ng4 {[%clk 0:00:08.6]} 35... Kg7 {[%clk 0:00:25.2]} 36. Rb1
{[%clk 0:00:06.1]} 36... Bxd5 {[%clk 0:00:23.2]} 37. Rd1 {[%clk 0:00:05.6]}
37... Nd4 {[%clk 0:00:23.4]} 38. Bxd5 {[%clk 0:00:03.3]} 38... Rxd5 {[%clk
0:00:23]} 39. Ke4 {[%clk 0:00:03.1]} 39... Rd8 {[%clk 0:00:22]} 40. Ra1 {[%clk
0:00:03]} 40... f5+ {[%clk 0:00:21.4]} 41. Kf4 {[%clk 0:00:02.8]} 41... fxg4
{[%clk 0:00:21.2]} 42. Rxa6 {[%clk 0:00:03.7]} 42... Nf5 {[%clk 0:00:17.8]} 43.
Kg5 {[%clk 0:00:03.5]} 43... Ne7 {[%clk 0:00:17.9]} 44. Ra7 {[%clk 0:00:03.9]}
44... Kf7 {[%clk 0:00:17]} 45. Rc7 {[%clk 0:00:04.3]} 45... Rd5+ {[%clk
0:00:16.7]} 46. Kxg4 {[%clk 0:00:04.9]} 46... Ke6 {[%clk 0:00:16.3]} 47. Kf4
{[%clk 0:00:05.5]} 47... g5+ {[%clk 0:00:14.1]} 48. Kg4 {[%clk 0:00:05.5]} 48...
Kd6 {[%clk 0:00:14.4]} 49. Ra7 {[%clk 0:00:05.4]} 49... c4 {[%clk 0:00:13.9]}
50. Ra6+ {[%clk 0:00:05.8]} 50... Kc7 {[%clk 0:00:11.4]} 51. Ra3 {[%clk
0:00:01.2]} 51... Rc5 {[%clk 0:00:10.1]} 52. Kh5 {[%clk 0:00:01.6]} 52... c3
{[%clk 0:00:09.7]} 53. Ra1 {[%clk 0:00:01.9]} 53... c2 {[%clk 0:00:09.8]} 54.
Rc1 {[%clk 0:00:02.5]} 54... Nc6 {[%clk 0:00:09.5]} 55. g4 {[%clk 0:00:01.6]}
55... Nb4 {[%clk 0:00:09.4]} 56. Kh6 {[%clk 0:00:02]} 56... Nd3 {[%clk
0:00:09.4]} 57. Rf1 {[%clk 0:00:02.6]} 57... c1=Q {[%clk 0:00:09.3]} 58. Rf7+
{[%clk 0:00:03.4]} 58... Kb6 {[%clk 0:00:09.2]} 59. Kg7 {[%clk 0:00:04.3]} 59...
Rc7 {[%clk 0:00:08.9]} 60. Kg8 {[%clk 0:00:02.1]} 60... Rxf7 {[%clk 0:00:08.6]}
61. Kh8 {[%clk 0:00:02.2]} 61... Qf4 {[%clk 0:00:09.4]} 62. Kg8 {[%clk
0:00:02.1]} 62... Ra7 {[%clk 0:00:08.4]} 0-1

[Event "Late-Titled-Tuesday-Blitz-June-25-2024"]
[Site "Chess.com"]
[Date "2024.06.25"]
[Round "10"]
[White "DenLaz"]
[Black "vi_pranav"]
[Result "1-0"]
[WhiteElo "3144"]
[BlackElo "3057"]
[TimeControl "180+1"]
[EndTime "15:56:30 PDT"]
[Termination "DenLaz won on time"]

1. d4 {[%clk 0:03:00.9]} 1... Nf6 {[%clk 0:02:59.7]} 2. c4 {[%clk 0:03:01.5]}
2... e6 {[%clk 0:03:00]} 3. Nf3 {[%clk 0:03:02.1]} 3... b6 {[%clk 0:02:59.8]} 4.
g3 {[%clk 0:03:02.4]} 4... Ba6 {[%clk 0:03:00.3]} 5. b3 {[%clk 0:03:00.9]} 5...
d5 {[%clk 0:03:00.2]} 6. Bg2 {[%clk 0:02:58.6]} 6... Bd6 {[%clk 0:02:56.8]} 7.
O-O {[%clk 0:02:56.9]} 7... O-O {[%clk 0:02:57]} 8. cxd5 {[%clk 0:02:40.6]} 8...
exd5 {[%clk 0:02:56.9]} 9. Nc3 {[%clk 0:02:40.5]} 9... Nbd7 {[%clk 0:02:55.4]}
10. Nh4 {[%clk 0:02:28.6]} 10... c6 {[%clk 0:02:44.9]} 11. a3 {[%clk 0:02:25.8]}
11... Re8 {[%clk 0:02:44.5]} 12. Re1 {[%clk 0:02:25.4]} 12... Bf8 {[%clk
0:02:40.6]} 13. Bf4 {[%clk 0:02:12.6]} 13... h6 {[%clk 0:02:35.1]} 14. Nf5
{[%clk 0:02:11.6]} 14... Re6 {[%clk 0:02:24.9]} 15. e4 {[%clk 0:02:06.2]} 15...
dxe4 {[%clk 0:02:23.3]} 16. Nxe4 {[%clk 0:02:06.1]} 16... Nxe4 {[%clk
0:02:22.3]} 17. Rxe4 {[%clk 0:02:06.1]} 17... Rxe4 {[%clk 0:02:13.8]} 18. Bxe4
{[%clk 0:02:07]} 18... Nf6 {[%clk 0:01:32.5]} 19. Bxc6 {[%clk 0:02:06]} 19...
Rc8 {[%clk 0:01:32.8]} 20. d5 {[%clk 0:02:06.2]} 20... Bd3 {[%clk 0:01:24.3]}
21. Qxd3 {[%clk 0:01:49.3]} 21... Rxc6 {[%clk 0:01:23.6]} 22. Rd1 {[%clk
0:01:49.7]} 22... Rc5 {[%clk 0:01:20.5]} 23. d6 {[%clk 0:01:38.8]} 23... Rd5
{[%clk 0:00:48.7]} 24. Qc2 {[%clk 0:01:36.9]} 24... Qd7 {[%clk 0:00:36.7]} 25.
Rxd5 {[%clk 0:01:27.6]} 25... Nxd5 {[%clk 0:00:35.4]} 26. Be5 {[%clk 0:01:02.3]}
26... Qe6 {[%clk 0:00:31.1]} 27. Qe4 {[%clk 0:00:17.2]} 27... Nf6 {[%clk
0:00:14.8]} 28. Qf4 {[%clk 0:00:15.9]} 28... Nd5 {[%clk 0:00:09.6]} 29. Qd4
{[%clk 0:00:11.9]} 29... g6 {[%clk 0:00:05.2]} 30. Ne3 {[%clk 0:00:05.7]} 30...
Nxe3 {[%clk 0:00:05.4]} 31. fxe3 {[%clk 0:00:05.7]} 31... Qd7 {[%clk 0:00:04.6]}
32. Qd5 {[%clk 0:00:06.1]} 32... h5 {[%clk 0:00:04.2]} 33. Kg2 {[%clk
0:00:06.4]} 33... a5 {[%clk 0:00:03.4]} 34. h3 {[%clk 0:00:05.3]} 34... b5
{[%clk 0:00:03.3]} 35. Bf4 {[%clk 0:00:05.1]} 35... Kg7 {[%clk 0:00:02.2]} 36.
e4 {[%clk 0:00:05.4]} 36... Kg8 {[%clk 0:00:01]} 37. e5 {[%clk 0:00:05.9]} 37...
Qf5 {[%clk 0:00:01.1]} 38. d7 {[%clk 0:00:05]} 38... Qc2+ {[%clk 0:00:01.7]} 39.
Bd2 {[%clk 0:00:05.7]} 39... Be7 {[%clk 0:00:02.2]} 40. d8=Q+ {[%clk 0:00:06.3]}
40... Bxd8 {[%clk 0:00:02.8]} 41. Qxd8+ {[%clk 0:00:07.2]} 41... Kh7 {[%clk
0:00:03.6]} 42. Qd5 {[%clk 0:00:06.7]} 42... Kg8 {[%clk 0:00:02.8]} 43. Kf2
{[%clk 0:00:05.8]} 43... Qf5+ {[%clk 0:00:02.8]} 44. Kg2 {[%clk 0:00:05.2]}
44... Qc2 {[%clk 0:00:03]} 45. g4 {[%clk 0:00:05.4]} 45... hxg4 {[%clk
0:00:02.7]} 46. hxg4 {[%clk 0:00:06.3]} 46... a4 {[%clk 0:00:03.3]} 47. b4
{[%clk 0:00:06.7]} 47... Qb2 {[%clk 0:00:02.3]} 48. e6 {[%clk 0:00:06.9]} 48...
fxe6 {[%clk 0:00:02.5]} 49. Qxe6+ {[%clk 0:00:07.8]} 49... Kg7 {[%clk
0:00:02.5]} 50. Qd7+ {[%clk 0:00:08.2]} 50... Kf6 {[%clk 0:00:02.2]} 51. Qd3
{[%clk 0:00:08.6]} 51... Ke6 {[%clk 0:00:01.7]} 52. Kf3 {[%clk 0:00:08.5]} 52...
Kf7 {[%clk 0:00:01.8]} 53. Qd5+ {[%clk 0:00:08.4]} 53... Ke8 {[%clk 0:00:01.4]}
54. Qd3 {[%clk 0:00:09]} 54... Kf7 {[%clk 0:00:01.6]} 55. Qc3 {[%clk 0:00:08.3]}
55... Qb1 {[%clk 0:00:01.6]} 56. Kf4 {[%clk 0:00:07.2]} 56... Qf1+ {[%clk
0:00:01.3]} 57. Qf3 {[%clk 0:00:07.4]} 57... Qb1 {[%clk 0:00:01.2]} 58. Ke5+
{[%clk 0:00:07.5]} 58... Ke8 {[%clk 0:00:01.4]} 59. Kd6 {[%clk 0:00:06]} 1-0

[Event "Late-Titled-Tuesday-Blitz-June-25-2024"]
[Site "Chess.com"]
[Date "2024.06.25"]
[Round "10"]
[White "enriquebutti"]
[Black "glucolisis04"]
[Result "1-0"]
[WhiteElo "2194"]
[BlackElo "2276"]
[TimeControl "180+1"]
[EndTime "15:56:32 PDT"]
[Termination "enriquebutti won by resignation"]

1. d4 {[%clk 0:02:59.4]} 1... Nf6 {[%clk 0:02:58.2]} 2. Nf3 {[%clk 0:02:58.9]}
2... g6 {[%clk 0:02:58.5]} 3. e3 {[%clk 0:02:56.8]} 3... Bg7 {[%clk 0:02:59.1]}
4. Bd3 {[%clk 0:02:56.4]} 4... O-O {[%clk 0:03:00]} 5. O-O {[%clk 0:02:56]} 5...
d6 {[%clk 0:03:00.9]} 6. c3 {[%clk 0:02:55.7]} 6... Nc6 {[%clk 0:03:00.2]} 7.
Nbd2 {[%clk 0:02:55.2]} 7... Nd7 {[%clk 0:02:56.5]} 8. e4 {[%clk 0:02:43.9]}
8... e5 {[%clk 0:02:56]} 9. d5 {[%clk 0:02:43.5]} 9... Ncb8 {[%clk 0:02:54.2]}
10. Re1 {[%clk 0:02:39]} 10... Nc5 {[%clk 0:02:53.3]} 11. Bc2 {[%clk 0:02:38.3]}
11... a5 {[%clk 0:02:51.4]} 12. Nf1 {[%clk 0:02:36.8]} 12... f5 {[%clk
0:02:32.7]} 13. exf5 {[%clk 0:02:28.3]} 13... gxf5 {[%clk 0:02:31.1]} 14. Be3
{[%clk 0:02:21.3]} 14... Ne4 {[%clk 0:02:29.5]} 15. Bxe4 {[%clk 0:02:19.2]}
15... fxe4 {[%clk 0:02:30.4]} 16. Ng5 {[%clk 0:02:18.9]} 16... Bf5 {[%clk
0:02:22.9]} 17. Ng3 {[%clk 0:02:17.5]} 17... Bg6 {[%clk 0:02:20.7]} 18. N5xe4
{[%clk 0:02:14]} 18... Nd7 {[%clk 0:02:21]} 19. Qg4 {[%clk 0:02:03]} 19... b6
{[%clk 0:02:06.5]} 20. h4 {[%clk 0:01:59.9]} 20... Bxe4 {[%clk 0:01:50.9]} 21.
Nxe4 {[%clk 0:01:58.3]} 21... Nf6 {[%clk 0:01:51.1]} 22. Nxf6+ {[%clk
0:01:54.7]} 22... Qxf6 {[%clk 0:01:50.1]} 23. f3 {[%clk 0:01:47.8]} 23... Kh8
{[%clk 0:01:45.2]} 24. Qg5 {[%clk 0:01:43.3]} 24... Rg8 {[%clk 0:01:42]} 25.
Qxf6 {[%clk 0:01:39.7]} 25... Bxf6 {[%clk 0:01:42.1]} 26. Bf2 {[%clk 0:01:33.1]}
26... a4 {[%clk 0:01:31.3]} 27. a3 {[%clk 0:01:31.9]} 27... Ra5 {[%clk
0:01:28.3]} 28. Rad1 {[%clk 0:01:27.9]} 28... Rb5 {[%clk 0:01:26.9]} 29. Rd2
{[%clk 0:01:24.6]} 29... Bg7 {[%clk 0:01:06.7]} 30. Re4 {[%clk 0:01:21]} 30...
Bh6 {[%clk 0:01:03.8]} 31. Be3 {[%clk 0:01:20]} 31... Bxe3+ {[%clk 0:01:02.5]}
32. Rxe3 {[%clk 0:01:19.4]} 32... Ra8 {[%clk 0:00:55]} 33. Re4 {[%clk
0:01:18.6]} 33... Raa5 {[%clk 0:00:54]} 34. c4 {[%clk 0:01:15.7]} 34... Rb3
{[%clk 0:00:49.7]} 35. f4 {[%clk 0:01:08]} 35... exf4 {[%clk 0:00:45.7]} 36.
Rxf4 {[%clk 0:01:07.1]} 36... b5 {[%clk 0:00:41.2]} 37. Re2 {[%clk 0:01:02.9]}
37... bxc4 {[%clk 0:00:39.3]} 38. Rxc4 {[%clk 0:01:01.8]} 38... Rxd5 {[%clk
0:00:37.3]} 39. Rxc7 {[%clk 0:01:00.4]} 39... Rd1+ {[%clk 0:00:36.5]} 40. Kh2
{[%clk 0:00:59.1]} 40... Rb8 {[%clk 0:00:29.8]} 41. Ra7 {[%clk 0:00:54.1]} 41...
Rb1 {[%clk 0:00:20.2]} 42. Rxa4 {[%clk 0:00:52.9]} 42... R1xb2 {[%clk
0:00:19.2]} 43. Rxb2 {[%clk 0:00:51.7]} 43... Rxb2 {[%clk 0:00:20.1]} 44. Rd4
{[%clk 0:00:50.7]} 44... Ra2 {[%clk 0:00:19.3]} 45. a4 {[%clk 0:00:50.4]} 45...
Kg7 {[%clk 0:00:19.4]} 46. Kg3 {[%clk 0:00:48.5]} 46... d5 {[%clk 0:00:18.1]}
47. Kf3 {[%clk 0:00:45.2]} 47... Kf6 {[%clk 0:00:18.3]} 48. g4 {[%clk
0:00:44.8]} 48... Ke5 {[%clk 0:00:18.1]} 49. Rb4 {[%clk 0:00:41.6]} 49... Ra3+
{[%clk 0:00:16.6]} 50. Ke2 {[%clk 0:00:40.3]} 50... d4 {[%clk 0:00:17]} 51. Rb5+
{[%clk 0:00:36.9]} 51... Ke4 {[%clk 0:00:17.5]} 52. g5 {[%clk 0:00:33.3]} 52...
Ra2+ {[%clk 0:00:17.9]} 53. Ke1 {[%clk 0:00:30.7]} 53... Ke3 {[%clk 0:00:18.5]}
54. Re5+ {[%clk 0:00:30]} 54... Kd3 {[%clk 0:00:19.1]} 55. Re7 {[%clk
0:00:28.9]} 55... Ra1+ {[%clk 0:00:18.7]} 56. Kf2 {[%clk 0:00:28.4]} 56... Rxa4
{[%clk 0:00:14.7]} 57. Rxh7 {[%clk 0:00:27.6]} 57... Kc3 {[%clk 0:00:09.9]} 58.
g6 {[%clk 0:00:26.3]} 58... d3 {[%clk 0:00:08.1]} 59. Rd7 {[%clk 0:00:19.3]}
59... Rxh4 {[%clk 0:00:02.8]} 60. g7 {[%clk 0:00:18.6]} 60... Rg4 {[%clk
0:00:02.8]} 61. Kf3 {[%clk 0:00:18.4]} 61... d2 {[%clk 0:00:03.1]} 62. Kxg4
{[%clk 0:00:17.8]} 1-0